Cogmind - Beta 16.1 @@@ ROGUE MODE // 2026.06.19 @ 21:04:31 Player: Lazz Result: Destroyed by H-77 Assassin with Coil Gun Performance ------------- Evolutions (7) 3500 Regions Visited (18) 3600 Robots Destroyed (123) 615 Value Destroyed (7459) 7459 Prototype IDs (6) 120 Alien Tech Used (0) 0 Bonus (5980) 5980 TOTAL SCORE: 21274 Bonus ------- High Alert Combat Kills 785 Follower Combat Kills 1195 Entered Garrisons 1000 Used RIF Installer 3000 Cogmind --------- Core Integrity 0/1300 Matter 94/300 Energy 100/100 System Corruption 14% Temperature Cool (0) Movement Core (900) Ox17 Location -3/Research Parts ------- > --- POWER (3) -------- (None) > --- PROPULSION (5) --- (None) > --- UTILITY (9) ------ Improved Target Analyzer Centrium Heavy Armor Plating Centrium Heavy Armor Plating Relay Coupler [Sentry] (8) Relay Coupler [Heavy] (9) Relay Coupler [Heavy] (12) > --- WEAPON (4) ------- Advanced Remote Datajack Falx > --- INVENTORY (5) ---- Gravity Neutralizer Relay Coupler [Grunt] (29) Advanced Remote Datajack Peak State ------------ > --- POWER ------------ Light Particle Reactor Light Particle Reactor > --- PROPULSION ------- Advanced Heavy Treads Advanced Heavy Treads Flexi-carbon Leg > --- UTILITY ---------- Improved Target Analyzer Quantum Capacitor Relay Coupler [Grunt] Relay Coupler [Sentry] Relay Coupler [Heavy] Relay Coupler [Heavy] > --- WEAPON ----------- Heavy Wave Gun Linear Accelerator Advanced Remote Datajack > --- INVENTORY -------- Gravity Neutralizer Relay Coupler [Grunt] Advanced Remote Datajack [Rating: 116] Favorites ----------- Power Reinforced Fission Core Engine Ion Engine Power Core Reinforced Fission Core Reactor Reinforced Quantum Reactor Propulsion Light Treads Treads Light Treads Leg Flexi-carbon Leg Wheel Armored Huge Wheel Hover Unit Improved Antigrav System Flight Unit Xenon Bombardment Thruster Utility Relay Coupler [Heavy] Device Advanced Heat Sink Storage Small Storage Unit Processor Improved Signal Interpreter Hackware Relay Coupler [Heavy] Protection Improved Weapon Shielding Weapon Magnetic Acceleration Cannon Energy Gun Medium Laser Energy Cannon Heavy Phase Cannon Ballistic Gun Hypervelocity Coil Gun Ballistic Cannon Magnetic Acceleration Cannon Launcher Rocket Launcher Special Weapon Remote Datajack Slashing Weapon Ripper Build | -11 -10 -10 -9 -9 -9 -8 -7 -7 -6 -6 -5 -5 -5 -5 -5 -4 -4 -3 ------- Run | Yrd Mat Min Mat Sto Gar Mat Fac Gar Fac Gar Fac Was Fac Gar Fac Fac Gar Res Slots Evolved 14 | . . . 2 . . 2 2 . 2 . 2 . . . . 2 . 2 Power 2 | . . . . . . . . . 1 . . . . . . 1 . . Propulsion 3 | . . . 1 . . . 1 . . . . . . . . . . 1 Utility 7 | . . . 1 . . 2 1 . 1 . 1 . . . . 1 . . Weapon 2 | . . . . . . . . . . . 1 . . . . . . 1 Parts Attached 152 | 7 . . 1 1 15 12 5 13 2 22 19 3 1 14 10 2 2 23 Power 17 | 1 . . . . 1 2 . . . 4 3 1 . . . . 1 4 Engine 4 | 1 . . . . 1 1 . . . . 1 . . . . . . . Core 7 | . . . . . . 1 . . . 4 2 . . . . . . . Reactor 6 | . . . . . . . . . . . . 1 . . . . 1 4 Propulsion 42 | 2 . . . . 5 4 2 4 . 5 5 1 . 5 3 1 . 5 Treads 16 | 2 . . . . 5 . . 2 . . . . . 3 2 . . 2 Leg 22 | . . . . . . 4 2 2 . 5 5 1 . 2 . . . 1 Wheel 2 | . . . . . . . . . . . . . . . 1 1 . . Hover 1 | . . . . . . . . . . . . . . . . . . 1 Flight 1 | . . . . . . . . . . . . . . . . . . 1 Utility 53 | 2 . . 1 . 5 4 2 5 1 9 9 1 . 4 2 1 1 6 Device 19 | 1 . . . . . 1 1 . . 2 6 1 . 1 1 . 1 4 Storage 1 | 1 . . . . . . . . . . . . . . . . . . Processor 6 | . . . 1 . . 1 . . 1 2 . . . . 1 . . . Hackware 19 | . . . . . 3 2 1 3 . 5 2 . . 2 . 1 . . Protection 8 | . . . . . 2 . . 2 . . 1 . . 1 . . . 2 Artifact . | . . . . . . . . . . . . . . . . . . . Weapon 40 | 2 . . . 1 4 2 1 4 1 4 2 . 1 5 5 . . 8 Energy Gun 6 | 1 . . . . . . 1 . . . . . . 1 2 . . 1 Energy Cannon 4 | . . . . . 1 . . . . 2 . . 1 . . . . . Ballistic Gun 10 | 1 . . . . . 1 . . . . . . . 3 3 . . 2 Ballistic Cannon 13 | . . . . 1 . . . 4 . 2 2 . . 1 . . . 3 Launcher 2 | . . . . . 1 1 . . . . . . . . . . . . Special Weapon 3 | . . . . . 1 . . . 1 . . . . . . . . 1 Impact Weapon . | . . . . . . . . . . . . . . . . . . . Slashing Weapon 2 | . . . . . 1 . . . . . . . . . . . . 1 Piercing Weapon . | . . . . . . . . . . . . . . . . . . . Special Melee Weapon . | . . . . . . . . . . . . . . . . . . . Unidentified Prototypes 3 | . . . . . . . . . . . . . . . . . . 3 Parts Lost 72 | . . . . 3 . 2 . 11 . 5 11 . . 9 2 . 8 21 Power 9 | . . . . 1 . 1 . . . 1 . . . . . . 3 3 Propulsion 25 | . . . . . . 1 . 4 . 3 3 . . 5 1 . 1 7 Utility 20 | . . . . 1 . . . 5 . 1 5 . . . 1 . 1 6 Weapon 18 | . . . . 1 . . . 2 . . 3 . . 4 . . 3 5 Highest Loss Streak 9 | . . . . 2 . 1 . 6 . 2 9 . . 4 2 . 8 8 To Critical Strikes 3 | . . . . . . . . . . . . . . 2 . . . 1 Average Backups 6 | . 2 2 6 7 7 7 7 7 8 7 4 4 4 4 4 5 4 2 Power . | . . . . . . . . . . . . 1 1 . . . . . Propulsion . | . . . . . . . . . . . . 1 . . . . 1 . Utility 2 | . 1 1 3 4 4 3 2 . 1 3 1 1 2 3 2 2 1 1 Weapon 2 | . 1 1 2 3 2 3 3 5 5 3 1 . . . 1 2 2 . Tool/Special . | . . . . . . . . . . . . . . . . . . . Unused Backups 16 | . . . . 1 4 2 . . 1 . 3 . . 1 1 . 1 2 Power . | . . . . . . . . . . . . . . . . . . . Propulsion . | . . . . . . . . . . . . . . . . . . . Utility 11 | . . . . 1 3 2 . . . . 3 . . . 1 . . 1 Weapon 4 | . . . . . 1 . . . 1 . . . . 1 . . 1 . Tool/Special 1 | . . . . . . . . . . . . . . . . . . 1 Average Slot Usage (%) 91 | . 100 100 86 81 96 97 93 95 92 92 96 98 97 97 93 84 87 52 Engine 3 | . 14 14 11 7 9 2 7 7 6 . 1 . . . . . . . Core 3 | . . . . . . 6 . . . 8 9 7 5 5 5 5 4 . Reactor 1 | . . . . . . . . . . . . 2 5 5 5 5 7 4 Treads 10 | . 28 28 22 22 32 10 . 3 13 5 . . . 8 10 9 4 . Leg 11 | . . . . . . 15 30 25 13 18 22 23 23 12 1 . . 2 Device 8 | . 14 14 11 7 . 8 8 6 . 4 8 17 17 15 11 10 12 6 Storage 4 | . 14 14 11 11 11 9 7 7 6 6 . . . . . . . . Processor 8 | . . . 9 11 . 6 7 7 12 18 14 11 11 9 7 10 7 4 Hackware 14 | . . . . . 3 18 15 16 20 15 16 17 17 18 23 22 26 19 Protection 3 | . . . . . 17 1 . 3 6 . 1 . . 1 3 . . 1 Energy Gun 1 | . 14 14 11 11 2 . 6 . . . . . . 1 3 . . 2 Energy Cannon 2 | . . . . . 7 . . . . 4 5 . 2 3 . . . . Ballistic Gun 2 | . 14 14 11 3 . 3 6 1 . . . . . 2 12 15 12 1 Ballistic Cannon 3 | . . . . 6 . . . 11 6 2 7 9 5 5 . . . 2 Launcher 1 | . . . . . 4 3 . 1 . . . . . . . . . . Special Weapon 1 | . . . . . 3 8 . . 5 3 . . . . . . . 1 Slashing Weapon 1 | . . . . . 3 2 . . . 1 1 5 5 1 . . . . Peak Build Rating 116 | 7 7 7 11 12 20 38 45 48 49 70 88 93 96 96 92 99 109 116 Average Rating 57 | 5 7 7 10 11 16 31 42 44 48 56 82 90 93 89 88 92 98 71 On Entrance 47 | . 7 7 7 11 8 19 38 45 47 48 70 84 90 96 85 91 99 49 Avg Prop Armor Cover (%) 8 | . . . . . . . . 11 12 8 . . . 6 9 12 8 5 Naked Turns . | . . . . . . . . . . . . . . . . . . . Heaviest Build 89 | 14 14 14 14 17 22 22 28 35 34 38 79 77 78 89 87 71 84 69 Greatest Support 84 | 40 40 40 40 40 60 60 74 84 46 80 75 83 83 83 53 44 44 70 Greatest Overweight (x) 17 | . . . . . . . . 1 . 1 1 1 . 3 3 2 2 17 Average Overweight (x) . | . . . . . . . . . . . . . . . 2 1 1 . Largest Inventory Capacity 8 | 8 8 8 8 8 8 8 8 8 8 8 8 5 5 5 5 5 5 5 Average Capacity 6 | 7 8 8 8 8 8 8 8 8 8 8 5 5 5 5 5 5 5 5 Most Carried 8 | 2 2 3 7 8 8 8 8 8 8 8 8 5 5 5 5 5 5 4 Average Carried 6 | . 2 2 6 7 7 7 7 7 7 7 4 4 4 4 4 4 4 2 Final Capacity 8 | 8 8 8 8 8 8 8 8 8 8 8 5 5 5 5 5 5 5 5 Final Carried 8 | 2 2 3 7 8 8 8 8 8 8 8 5 5 4 5 5 5 5 3 Class Distribution -------------------- 28% | Scavenger-Mutant 22% | Mutant 16% | Bothacker-Mutant 7% | Bothacker-Tank 6% | Commander-Mutant 5% | Scavenger-Gunner 4% | Scavenger-Tank 3% | Commander-Gunner 3% | Tank Dominant Class ---------------- Mutant | -10/Materials Mutant | -10/Mines Mutant | -9/Materials Mutant | -9/Storage Scavenger-Mutant | -9/Garrison Bothacker-Mutant | -8/Materials Mutant | -7/Factory Mutant | -7/Garrison Scavenger-Mutant | -6/Factory Commander-Mutant | -6/Garrison Scavenger-Mutant | -5/Factory Scavenger-Mutant | -5/Waste Scavenger-Mutant | -5/Factory Bothacker-Tank | -5/Garrison Tank | -5/Factory Scavenger-Gunner | -4/Factory Scavenger-Gunner | -4/Garrison Scavenger-Mutant | -3/Research Resources | -11 -10 -10 -9 -9 -9 -8 -7 -7 -6 -6 -5 -5 -5 -5 -5 -4 -4 -3 ----------- Run | Yrd Mat Min Mat Sto Gar Mat Fac Gar Fac Gar Fac Was Fac Gar Fac Fac Gar Res Matter Collected 4556 | 281 1 1 15 62 353 512 . 769 117 630 427 84 . 415 366 . 125 398 Remotely 55 | . . . . . . . . . . . . . . . . . 55 . Salvage Created 4391 | 140 29 29 48 189 455 452 . 480 9 393 672 . . 431 587 . 85 392 Parts 239 | 7 4 2 . 7 42 26 . 33 . 12 29 . . 28 33 . 4 12 Haulers Intercepted 1 | . . . . . . . . . . . . . . . 1 . . . Recyclers Shooed 2 | . . . . . . 1 . . . . . . . . 1 . . . Parts Field Recycled . | . . . . . . . . . . . . . . . . . . . Retrieved Matter . | . . . . . . . . . . . . . . . . . . . Parts Self-Destructed . | . . . . . . . . . . . . . . . . . . . Prevented . | . . . . . . . . . . . . . . . . . . . Parts Restored . | . . . . . . . . . . . . . . . . . . . Kills | -11 -10 -10 -9 -9 -9 -8 -7 -7 -6 -6 -5 -5 -5 -5 -5 -4 -4 -3 ------- Run | Yrd Mat Min Mat Sto Gar Mat Fac Gar Fac Gar Fac Was Fac Gar Fac Fac Gar Res Combat Hostiles Destroyed 108 | . . . 1 5 20 12 . 20 1 9 12 . . 13 4 . 1 10 Melee 3 | . . . . . . 2 . . . . . . . 1 . . . . Guns 14 | . . . 1 2 1 1 . 3 . . . . . . 4 . 1 1 Cannons 64 | . . . . 3 6 2 . 12 1 8 11 . . 12 . . . 9 AOE 25 | . . . . . 13 7 . 5 . . . . . . . . . . Classes Destroyed 17 | 2 . 1 1 2 3 1 . 2 . 1 2 . . 1 1 . . . Worker 3 | . . 1 . . . 1 . . . . 1 . . . . . . . Builder 2 | . . . . . . . . . . . 2 . . . . . . . Tunneler 3 | 2 1 . . . . . . . . . . . . . . . . . Hauler 1 | . . . . . . . . . . . . . . . 1 . . . Recycler 2 | 1 . . . . . . . . . . . . . . 1 . . . Mechanic 1 | . . . . . . . . . . . 1 . . . . . . . Watcher 3 | . . . . . . 1 . 1 . . . . . . 1 . . . Swarmer 34 | . . . . . 9 4 . 7 . 3 . . . 8 . . . 3 Cutter 3 | . . . . . . . . 3 . . . . . . . . . . Grunt 34 | . . . 1 2 7 6 . 6 . . 6 . . 3 . . 1 2 Brawler 4 | . . . . 1 . . . 1 . 1 1 . . . . . . . Duelist 1 | . . . . . . . . 1 . . . . . . . . . . Sentry 11 | . . . . 2 1 . . 2 . 2 . . . . 2 . . 2 Specialist 3 | . . . . . 1 2 . . . . . . . . . . . . Hunter 6 | . . . . . . . . . . 2 3 . . 1 . . . . Programmer 11 | . . . . . 2 . . . 1 1 2 . . . 2 . . 3 Behemoth 1 | . . . . . . . . . . . . . . 1 . . . . Best Kill Streak 10 | 2 1 1 1 4 7 3 . 7 1 2 10 . . 3 3 . 1 3 Combat Bots Only 7 | . . . 1 4 7 3 . 7 1 2 4 . . 3 3 . 1 3 Max Kills in Single Turn 5 | 1 1 1 1 1 5 3 . 2 1 1 2 . . 1 2 . 1 1 Gunslinging 1 | . . . . . . . . . . . . . . . 1 . . . Exploded 5 | . . . . . 5 3 . 2 . . . . . . . . . . Melee 1 | . . . . . . 1 . . . . . . . 1 . . . . Uniques/NPCs Destroyed . | . . . . . . . . . . . . . . . . . . . Combat | -11 -10 -10 -9 -9 -9 -8 -7 -7 -6 -6 -5 -5 -5 -5 -5 -4 -4 -3 -------- Run | Yrd Mat Min Mat Sto Gar Mat Fac Gar Fac Gar Fac Was Fac Gar Fac Fac Gar Res Hostile Shots Fired 1515 | . . . 9 34 47 42 . 169 10 164 185 . . 165 28 . 169 493 Missed 466 | . . . 2 10 15 12 . 48 8 57 58 . . 42 8 . 58 148 Hits 1049 | . . . 7 24 32 30 . 121 2 107 127 . . 123 20 . 111 345 Melee 15 | . . . . 2 . . . 12 . . . . . . . . 1 . Projectile 1034 | . . . 7 22 32 30 . 109 2 107 127 . . 123 20 . 110 345 AOE 2 | . . . . . . . . 2 . . . . . . . . . . Critical Strikes 35 | . . . . 2 1 1 . 5 . 1 4 . . 4 1 . 3 13 Part Disruptions 1 | . . . . . . . . . . . . . . . . . . 1 Damage Taken 16180 | . . . 87 348 438 535 . 1779 29 1046 1978 . . 1771 432 . 1613 6124 Core 2898 | . . . 27 23 66 116 . 243 . 176 269 . . 205 . . 460 1313 Absorbed by Shields 367 | . . . . . . . . 20 . . 310 . . . . . 37 . Reduced by Siege Mode 34 | . . . . . . . . . . . . . . . . . . 34 Redirected to Shielding 43 | . . . . . 43 . . . . . . . . . . . . . Ignored by Resistances 545 | . . . . . . . . . . 71 . . . 424 32 . . 18 Core Remaining (%) 75 | 100 . 100 . . 71 78 . 65 . 79 . . . . 52 . 60 . Volleys Fired 431 | 11 1 1 6 16 49 48 1 60 21 60 42 . . 28 22 . 10 55 Largest 3 | 2 2 2 2 2 2 2 2 2 1 2 3 . . 3 3 . 3 3 Hottest 227 | 70 70 70 70 83 118 68 94 88 44 180 227 . . 203 145 . 103 172 Shots Fired 680 | 22 2 2 12 31 59 53 2 100 21 72 72 . . 65 61 . 24 82 Gun 237 | 22 2 2 12 15 13 14 2 19 . . . . . 14 61 . 24 37 Cannon 363 | . . . . 16 31 7 . 73 12 63 68 . . 49 . . . 44 Launcher 26 | . . . . . 9 9 . 8 . . . . . . . . . . Special 54 | . . . . . 6 23 . . 9 9 4 . . 2 . . . 1 Kinetic 402 | 11 1 1 6 16 . 14 1 92 12 42 36 . . 39 47 . 24 60 Thermal 198 | 11 1 1 6 15 44 7 1 . . 21 32 . . 24 14 . . 21 Explosive 26 | . . . . . 9 9 . 8 . . . . . . . . . . Electromagnetic . | . . . . . . . . . . . . . . . . . . . Robot Hit Streak 17 | 4 3 4 8 9 10 15 5 8 5 14 17 . . 5 11 . 8 10 Robot Miss Streak 8 | 2 . . 2 1 1 7 . 8 2 2 3 . . 5 5 . 1 5 Penetration Max 1 | . . . . . . . . . . . 1 . . . . . 1 . Secondary Targets 1 | . . . . . . . . . . . . . . . 1 . . . Max Gunslinging Chain 1 | . . . . . . . . . . . . . . . 1 . . . Shots Hit Robots 463 | 14 1 1 9 20 42 42 2 51 12 70 53 . . 35 44 . 8 59 Core Hits 204 | 5 1 1 2 9 27 18 1 31 1 20 23 . . 20 19 . 4 22 Critical Kills 9 | . . . . . . . . . . 1 1 . . . 6 . 1 . Critical Parts Destroyed 5 | . . . . . . . . . . . . . . . 5 . . . Critical Strikes 37 | . . . 2 . 1 . . 3 . 2 5 . . 4 13 . 1 6 Burn 3 | . . . 2 . 1 . . . . . . . . . . . . . Meltdown 2 | . . . . . . . . . . 1 1 . . . . . . . Destroy 14 | . . . . . . . . . . . . . . . 13 . 1 . Blast 14 | . . . . . . . . 3 . 1 4 . . 1 . . . 5 Sever 4 | . . . . . . . . . . . . . . 3 . . . 1 Melee Attacks 64 | . . . . . 11 10 . . . 24 4 . . 11 . . . 4 Impact . | . . . . . . . . . . . . . . . . . . . Slashing 64 | . . . . . 11 10 . . . 24 4 . . 11 . . . 4 Piercing . | . . . . . . . . . . . . . . . . . . . Sneak Attacks 1 | . . . . . . 1 . . . . . . . . . . . . Combat Hostiles . | . . . . . . . . . . . . . . . . . . . Follow-up Attacks . | . . . . . . . . . . . . . . . . . . . Damage Inflicted 13807 | 153 13 12 94 346 1615 1353 39 1752 243 2267 1864 . . 1140 528 . 136 2252 Guns 2286 | 153 13 12 94 127 104 217 39 154 . . . . . 59 528 . 136 650 Cannons 7731 | . . . . 219 517 104 . 1221 243 1416 1864 . . 744 . . . 1403 Explosions 2073 | . . . . . 994 702 . 377 . . . . . . . . . . Melee 1704 | . . . . . . 330 . . . 851 . . . 337 . . . 186 Ramming 13 | . . . . . . . . . . . . . . . . . . 13 Kinetic 6395 | 54 . . 31 219 . 217 20 1375 243 787 968 . . 355 290 . 136 1700 Thermal 3622 | 99 13 12 63 127 621 104 19 . . 629 896 . . 448 238 . . 353 Explosive 2073 | . . . . . 994 702 . 377 . . . . . . . . . . Electromagnetic . | . . . . . . . . . . . . . . . . . . . Impact . | . . . . . . . . . . . . . . . . . . . Slashing 1704 | . . . . . . 330 . . . 851 . . . 337 . . . 186 Piercing . | . . . . . . . . . . . . . . . . . . . Highest Corruption 14 | . . . . 3 4 . . 4 . . 1 1 1 1 3 . . 14 Average Corruption 2 | . . . . 3 3 . . 4 . . 1 1 1 1 1 . . 10 Corruption Purged . | . . . . . . . . . . . . . . . . . . . Corruption Blocked . | . . . . . . . . . . . . . . . . . . . Effects 81 | . . . . 2 28 . . 13 . . 3 2 1 15 6 . . 11 Message Errors 21 | . . . . . 6 . . 2 . . 1 . . 3 3 . . 6 Matter Fused 26 | . . . . . 12 . . 3 . . . 2 . 4 1 . . 4 Heat Flow Errors 7 | . . . . . 3 . . . . . . . 1 2 1 . . . Energy Discharges 7 | . . . . . 3 . . 2 . . . . . 2 . . . . Parts Rejected 1 | . . . . . . . . . . . . . . . . . . 1 Data Loss (minor) 9 | . . . . 1 2 . . 4 . . 1 . . . 1 . . . Data Loss (major) 1 | . . . . . . . . 1 . . . . . . . . . . Misfires 2 | . . . . 1 . . . . . . . . . 1 . . . . Alerts 6 | . . . . . 2 . . . . . 1 . . 3 . . . . Weapon Failures 1 | . . . . . . . . 1 . . . . . . . . . . Overload Shots . | . . . . . . . . . . . . . . . . . . . Overflow Damage 257 | . . . . . 39 50 . 34 2 45 12 . . 8 . . . 67 Projectiles 134 | . . . . . 14 . . 34 2 29 12 . . 8 . . . 35 Explosions 65 | . . . . . 25 40 . . . . . . . . . . . . Melee 58 | . . . . . . 10 . . . 16 . . . . . . . 32 Knockbacks 35 | . . . . 1 . . . 13 1 4 6 . . 1 . . . 9 Impact 1 | . . . . . . . . . . . . . . . . . . 1 Kinetic 33 | . . . . 1 . . . 13 1 4 5 . . 1 . . . 8 Secondary 1 | . . . . . . . . . . . 1 . . . . . . . Self-Inflicted Damage 157 | . . . . . . 33 . 119 . . . . . . . . . 5 Shots 5 | . . . . . . 1 . 4 . . . . . . . . . . Rammed 4 | . . . . . . . . . . . . . . . . . . 4 Targets Rammed 4 | . . . . . . . . . . . . . . . . . . 4 Kicked . | . . . . . . . . . . . . . . . . . . . Crushed . | . . . . . . . . . . . . . . . . . . . Highest Temperature 481 | 100 30 30 75 84 246 105 40 96 . 360 380 . 223 364 418 . 72 481 Average Temperature 99 | 53 19 19 36 38 70 38 25 30 . 114 105 . 120 119 124 . 36 231 Received Heat Transfer 2295 | . . . 39 132 96 240 . 174 . 246 177 . . 291 36 . 657 207 Effects 22 | . . . . . . . . . . 2 10 . . 1 2 . . 7 Shutdowns 8 | . . . . . . . . . . 1 1 . . . 1 . . 5 Energy Bleed 3 | . . . . . . . . . . . 2 . . 1 . . . . Interference 7 | . . . . . . . . . . 1 6 . . . . . . . Damage (minor) 4 | . . . . . . . . . . . 1 . . . 1 . . 2 Siege Activations 1 | . . . . . . . . . . . . . . . . . . 1 Total Turns 7 | . . . . . . . . . . . . . . . . . . 7 Longest Duration 7 | . . . . . . . . . . . . . . . . . . 7 Martial Activations . | . . . . . . . . . . . . . . . . . . . Shielding Activations . | . . . . . . . . . . . . . . . . . . . Robots Disrupted . | . . . . . . . . . . . . . . . . . . . Combat Hostiles . | . . . . . . . . . . . . . . . . . . . Robots Corrupted . | . . . . . . . . . . . . . . . . . . . Combat Hostiles . | . . . . . . . . . . . . . . . . . . . Parts Fried . | . . . . . . . . . . . . . . . . . . . Impact Corruptions . | . . . . . . . . . . . . . . . . . . . Robots Melted 2 | . . . . . . . . . . 1 1 . . . . . . . Combat Hostiles 2 | . . . . . . . . . . 1 1 . . . . . . . Parts Melted 12 | . . . 3 . 1 . . . . 5 2 . . 1 . . . . Heat Transferred 5309 | 296 37 37 333 370 1184 185 37 . . 647 888 . . 518 370 . . 407 Parts Sabotaged . | . . . . . . . . . . . . . . . . . . . Parts Stolen . | . . . . . . . . . . . . . . . . . . . Parts Stripped . | . . . . . . . . . . . . . . . . . . . Power Chain Reactions . | . . . . . . . . . . . . . . . . . . . Alert | -11 -10 -10 -9 -9 -9 -8 -7 -7 -6 -6 -5 -5 -5 -5 -5 -4 -4 -3 ------- Run | Yrd Mat Min Mat Sto Gar Mat Fac Gar Fac Gar Fac Was Fac Gar Fac Fac Gar Res Maximum Alert Level 4 | . . . . . 4 3 1 3 2 3 3 1 . 2 1 . 1 . Low Security (%) 36 | 100 100 100 100 100 21 . . 2 . 9 . 27 100 45 84 100 98 100 Level 1 22 | . . . . . 3 . 100 24 85 40 . 72 . 41 15 . 1 . Level 2 16 | . . . . . 6 91 . 24 14 6 32 . . 13 . . . . Level 3 24 | . . . . . 67 8 . 47 . 42 67 . . . . . . . Level 4 . | . . . . . 2 . . . . . . . . . . . . . Level 5 . | . . . . . . . . . . . . . . . . . . . High Security . | . . . . . . . . . . . . . . . . . . . Max Security . | . . . . . . . . . . . . . . . . . . . Peak Influence 1123 | 10 5 5 20 100 1123 730 298 803 421 996 901 259 125 445 233 36 203 96 Initial 547 | . . . . . 50 547 298 166 421 167 522 259 125 66 233 36 11 96 Average 397 | 1 . . 1 28 686 573 272 560 331 559 735 221 112 261 141 29 115 22 Influence Increases 5643 | 15 5 5 20 168 1093 632 . 747 34 939 874 . . 489 108 . 302 212 Destroy 0b10 Robot/C 2565 | . . . 20 100 540 340 . 400 20 395 315 . . 210 60 . 15 150 Destroy 0b10 Robot/NC 103 | 15 5 5 . . . 20 . 5 . 5 36 . . . 12 . . . Destroy Leader 348 | . . . . 40 20 74 . 30 10 40 66 . . 8 28 . . 32 Allied During Kill 548 | . . . . . 105 33 . . . 220 188 . . 2 . . . . Successful Hack 66 | . . . . 11 21 . . . . 14 9 . . . . . 11 . Disable Machine 84 | . . . . . 30 15 . 15 . . . . . 12 . . . 12 Anti-Garrison Action 1116 | . . . . . 300 . . 150 . 213 226 . . 189 . . 38 . Destroy Structure 426 | . . . . 2 77 75 . 57 4 37 22 . . 20 8 . 106 18 Lose Combat Pursuer 387 | . . . . 15 . 75 . 90 . 15 12 . . 48 . . 132 . Influence Decreases 5643 | 15 5 5 20 91 47 1098 419 182 598 182 1130 561 84 139 478 59 145 385 Entered New Map 2859 | . . . . . 27 576 359 72 382 72 474 481 54 29 212 39 5 77 Time Decay 1646 | 15 5 5 20 70 . 342 60 . 206 . 356 80 30 . 246 20 . 191 Lost Part 618 | . . . . 21 . 20 . 110 . 50 110 . . 90 20 . 80 117 Lost Ally 520 | . . . . . 20 160 . . 10 60 190 . . 20 . . 60 . Squads Dispatched 20 | . 1 . . 2 . 2 . . 2 . 9 . . . 1 . . 3 Investigation 5 | . . . . 2 . 1 . . 1 . 1 . . . . . . . Extermination 5 | . . . . . . . . . 1 . 2 . . . 1 . . 1 Reinforcement 5 | . 1 . . . . 1 . . . . 1 . . . . . . 2 Assault 4 | . . . . . . . . . . . 4 . . . . . . . Garrison 1 | . . . . . . . . . . . 1 . . . . . . . Intercept . | . . . . . . . . . . . . . . . . . . . Searches Triggered . | . . . . . . . . . . . . . . . . . . . Construction Impeded 1 | . . . . . . . . . . . 1 . . . . . . . Haulers Reinforced . | . . . . . . . . . . . . . . . . . . . Active Scanning Responses . | . . . . . . . . . . . . . . . . . . . Cargo Convoy Interrupts 1 | . . . . . . . . . . . 1 . . . . . . . Stealth | -11 -10 -10 -9 -9 -9 -8 -7 -7 -6 -6 -5 -5 -5 -5 -5 -4 -4 -3 --------- Run | Yrd Mat Min Mat Sto Gar Mat Fac Gar Fac Gar Fac Was Fac Gar Fac Fac Gar Res Distress Signals 7 | . . . . . . 3 . . . . 4 . . . . . . . Communications Jammed 2 | . . . . . . . . . . . 2 . . . . . . . Distress Signals . | . . . . . . . . . . . . . . . . . . . Times Spotted 217 | . 2 . 2 9 31 25 1 20 3 29 34 1 . 17 7 . 19 17 Peak Tracking Total 14 | . 2 . 1 4 8 4 1 8 1 5 10 1 . 4 2 . 14 5 Tactical Retreats 14 | . . . . 1 . 3 . 2 . 1 1 . . 3 . . 3 . Traps | -11 -10 -10 -9 -9 -9 -8 -7 -7 -6 -6 -5 -5 -5 -5 -5 -4 -4 -3 ------- Run | Yrd Mat Min Mat Sto Gar Mat Fac Gar Fac Gar Fac Was Fac Gar Fac Fac Gar Res Traps Triggered 14 | . . . . . . 1 . 3 . 3 1 . . 2 . . 3 1 Indirectly . | . . . . . . . . . . . . . . . . . . . Trap Hack Attempts . | . . . . . . . . . . . . . . . . . . . Triggered . | . . . . . . . . . . . . . . . . . . . Disarmed . | . . . . . . . . . . . . . . . . . . . Reprogrammed . | . . . . . . . . . . . . . . . . . . . Reused . | . . . . . . . . . . . . . . . . . . . Traps Extracted . | . . . . . . . . . . . . . . . . . . . Installed . | . . . . . . . . . . . . . . . . . . . Triggered . | . . . . . . . . . . . . . . . . . . . Machines | -11 -10 -10 -9 -9 -9 -8 -7 -7 -6 -6 -5 -5 -5 -5 -5 -4 -4 -3 ---------- Run | Yrd Mat Min Mat Sto Gar Mat Fac Gar Fac Gar Fac Was Fac Gar Fac Fac Gar Res Machines Disabled 21 | . . . . . 6 1 . 3 . 2 2 . . 4 . . 2 1 Max in Single Turn 2 | . . . . . 1 1 . 1 . 1 1 . . 1 . . 2 1 Garrison Access 2 | . . . . . . . . . . . 2 . . . . . . . Garrison Relay 11 | . . . . . 4 . . 2 . 2 . . . 3 . . . . Phase Generator 1 | . . . . . . . . . . . . . . . . . 1 . Machines Repaired . | . . . . . . . . . . . . . . . . . . . Machines Dismantled . | . . . . . . . . . . . . . . . . . . . Machines Sabotaged . | . . . . . . . . . . . . . . . . . . . Overloaded Fab Kills . | . . . . . . . . . . . . . . . . . . . Hacking | -11 -10 -10 -9 -9 -9 -8 -7 -7 -6 -6 -5 -5 -5 -5 -5 -4 -4 -3 --------- Run | Yrd Mat Min Mat Sto Gar Mat Fac Gar Fac Gar Fac Was Fac Gar Fac Fac Gar Res Machines Accessed 26 | . 1 . . 3 3 2 1 1 4 1 1 . 1 2 2 1 1 2 Terminals 15 | . 1 . . 2 3 1 . 1 2 1 . . . 2 . . 1 1 Fabricators 1 | . . . . . . . . . 1 . . . . . . . . . Repair Stations 1 | . . . . . . . . . . . 1 . . . . . . . Recycling Units 2 | . . . . . . . . . . . . . . . 1 . . 1 Scanalyzers 2 | . . . . . . 1 . . . . . . . . 1 . . . Garrison Access 5 | . . . . 1 . . 1 . 1 . . . 1 . . 1 . . Total Hacks 58 | . 2 . . 8 6 10 1 2 7 2 3 . 1 2 4 2 3 5 Successful 25 | . . . . 3 3 6 1 . 2 1 1 . 1 . 3 2 1 1 Failed 32 | . 2 . . 4 3 4 . 2 5 1 2 . . 2 1 . 2 4 Catastrophic 10 | . . . . 2 . . . . 2 1 . . . 2 1 . 1 1 Database Lockouts 1 | . . . . 1 . . . . . . . . . . . . . . Manual 9 | . . . . 6 . 3 . . . . . . . . . . . . Terminals 32 | . 2 . . 7 6 3 . 2 3 2 . . . 2 . . 3 2 Fabricators 3 | . . . . . . . . . 3 . . . . . . . . . Repair Stations 3 | . . . . . . . . . . . 3 . . . . . . . Recycling Units 4 | . . . . . . . . . . . . . . . 1 . . 3 Scanalyzers 10 | . . . . . . 7 . . . . . . . . 3 . . . Garrison Access 6 | . . . . 1 . . 1 . 1 . . . 1 . . 2 . . Terminal Hacks 7 | . . . . 2 3 . . . . 1 . . . . . . 1 . Robot Analysis 1 | . . . . 1 . . . . . . . . . . . . . . Open Door 1 | . . . . . 1 . . . . . . . . . . . . . Emergency Access Points 2 | . . . . . 1 . . . . . . . . . . . 1 . Zone Layout 1 | . . . . 1 . . . . . . . . . . . . . . Garrison Registry 2 | . . . . . 1 . . . . 1 . . . . . . . . Fabricator Hacks 1 | . . . . . . . . . 1 . . . . . . . . . Load Schematic 1 | . . . . . . . . . 1 . . . . . . . . . Repair Station Hacks 1 | . . . . . . . . . . . 1 . . . . . . . Scan Component 1 | . . . . . . . . . . . 1 . . . . . . . Recycling Unit Hacks 1 | . . . . . . . . . . . . . . . . . . 1 Retrieve Components 1 | . . . . . . . . . . . . . . . . . . 1 Scanalyzer 9 | . . . . . . 6 . . . . . . . . 3 . . . Insert Component 3 | . . . . . . 2 . . . . . . . . 1 . . . Analyze 3 | . . . . . . 2 . . . . . . . . 1 . . . Retrieve Study 3 | . . . . . . 2 . . . . . . . . 1 . . . Garrison Access Hacks 6 | . . . . 1 . . 1 . 1 . . . 1 . . 2 . . Unlock Access 5 | . . . . 1 . . 1 . 1 . . . 1 . . 1 . . Coupler Status 1 | . . . . . . . . . . . . . . . . 1 . . Unauthorized Hacks . | . . . . . . . . . . . . . . . . . . . Terminals . | . . . . . . . . . . . . . . . . . . . Fabricators . | . . . . . . . . . . . . . . . . . . . Repair Stations . | . . . . . . . . . . . . . . . . . . . Recycling Units . | . . . . . . . . . . . . . . . . . . . Scanalyzers . | . . . . . . . . . . . . . . . . . . . Garrison Access . | . . . . . . . . . . . . . . . . . . . Data Cores Recovered . | . . . . . . . . . . . . . . . . . . . Used . | . . . . . . . . . . . . . . . . . . . Hacking Detections 21 | . 1 . . 2 2 2 . 1 4 1 1 . 1 2 1 . 1 2 Full Trace Events 6 | . . . . 2 . . . 1 1 1 1 . . . . . . . Feedback Events . | . . . . . . . . . . . . . . . . . . . Feedback Blocked . | . . . . . . . . . . . . . . . . . . . Robot Schematics Acquired . | . . . . . . . . . . . . . . . . . . . Robots Built . | . . . . . . . . . . . . . . . . . . . Authchips . | . . . . . . . . . . . . . . . . . . . Time . | . . . . . . . . . . . . . . . . . . . Total Robot Build Rating . | . . . . . . . . . . . . . . . . . . . Part Schematics Acquired 3 | . . . . . . 2 . . . . . . . . 1 . . . Parts Built . | . . . . . . . . . . . . . . . . . . . Authchips . | . . . . . . . . . . . . . . . . . . . Time . | . . . . . . . . . . . . . . . . . . . Total Part Build Rating . | . . . . . . . . . . . . . . . . . . . Part Studies Acquired 3 | . . . . . . 2 . . . . . . . . 1 . . . Parts Repaired . | . . . . . . . . . . . . . . . . . . . Time . | . . . . . . . . . . . . . . . . . . . Parts Recycled . | . . . . . . . . . . . . . . . . . . . Recycled Matter . | . . . . . . . . . . . . . . . . . . . Retrieved Matter . | . . . . . . . . . . . . . . . . . . . Retrieved Components 2 | . . . . . . . . . . . . . . . . . . 2 Parts Scanalyzed 3 | . . . . . . 2 . . . . . . . . 1 . . . Part Schematics Acquired 3 | . . . . . . 2 . . . . . . . . 1 . . . Parts Damaged . | . . . . . . . . . . . . . . . . . . . Bothacking | -11 -10 -10 -9 -9 -9 -8 -7 -7 -6 -6 -5 -5 -5 -5 -5 -4 -4 -3 ------------ Run | Yrd Mat Min Mat Sto Gar Mat Fac Gar Fac Gar Fac Was Fac Gar Fac Fac Gar Res Used RIF Installer 6 | . . . . . 2 . . 1 . 2 . . . 1 . . . . Threat Obfuscator 1 | . . . . . . . . . . 1 . . . . . . . . Signal Jammer 1 | . . . . . . . . 1 . . . . . . . . . . Zone Cloak 1 | . . . . . . . . . . . . . . 1 . . . . Robot Detection 1 | . . . . . 1 . . . . . . . . . . . . . Autooverride 1 | . . . . . . . . . . 1 . . . . . . . . Robots Hacked 43 | . . . . . 5 11 . . 6 9 6 . . 2 . . 3 1 Non-combat 12 | . . . . . . 7 . . 5 . . . . . . . . . Combat 31 | . . . . . 5 4 . . 1 9 6 . . 2 . . 3 1 Autooverrided 6 | . . . . . . . . . . . 3 . . . . . 3 . Robot Hacks Applied 38 | . . . . . 5 12 . . 6 9 3 . . 2 . . . 1 parse_system 1 | . . . . . . . . . . . . . . . . . . 1 no_distress 1 | . . . . . . . . . 1 . . . . . . . . . map_walls 3 | . . . . . . 3 . . . . . . . . . . . . drop_inventory 5 | . . . . . . 4 . . 1 . . . . . . . . . mark_security 1 | . . . . . . 1 . . . . . . . . . . . . find_garrison 2 | . . . . . . 1 . . . . 1 . . . . . . . link_fov 2 | . . . . . . . . . 2 . . . . . . . . . spike_heat 1 | . . . . . . . . . . 1 . . . . . . . . overload_power 1 | . . . . . . . . . . . . . . 1 . . . . disable_weapons 2 | . . . . . 1 . . . . 1 . . . . . . . . formatsys_high 19 | . . . . . 4 3 . . 2 7 2 . . 1 . . . . Relay Couplers Released 45 | . . . . . 15 . . 6 . 9 3 . . 12 . . . . Machine Destruction 45 | . . . . . 15 . . 6 . 9 3 . . 12 . . . . Attached 18 | . . . . . 3 2 1 2 . 5 2 . . 2 . 1 . . Fabnet Peak Effective % . | . . . . . . . . . . . . . . . . . . . Robots Rewired 9 | . . . . . 3 . . . . 6 . . . . . . . . Allies Hacked 1 | . . . . . . . . . . 1 . . . . . . . . Hacks Repelled . | . . . . . . . . . . . . . . . . . . . Allies | -11 -10 -10 -9 -9 -9 -8 -7 -7 -6 -6 -5 -5 -5 -5 -5 -4 -4 -3 -------- Run | Yrd Mat Min Mat Sto Gar Mat Fac Gar Fac Gar Fac Was Fac Gar Fac Fac Gar Res Total Allies 34 | . . . . . 7 3 . . 2 13 5 . . 1 . . 3 . Largest Group 10 | . . . . . 5 6 . . 1 10 10 . . 1 . . 2 . Highest-Rated Group 334 | . . . . . 87 73 . . 41 297 334 . . 49 . . 112 . Highest-Rated Ally 58 | . . . . . 31 26 . . 41 41 49 . . 49 . . 58 . Total Orders 11 | . . . . . 4 . . . 1 4 2 . . . . . . . STAY 4 | . . . . . 2 . . . . 2 . . . . . . . . ROAM 1 | . . . . . . . . . 1 . . . . . . . . . FOLLOW 4 | . . . . . 2 . . . . 2 . . . . . . . . EXPLORE 2 | . . . . . . . . . . . 2 . . . . . . . Ally Attacks 247 | . . . . . 36 39 . . . 70 93 . . 5 . . 4 . Total Damage 5157 | . . . . . 545 704 . . . 1397 2188 . . 125 . . 198 . Kills 40 | . . . . . 7 7 . . . 11 14 . . 1 . . . . Allies Corrupted . | . . . . . . . . . . . . . . . . . . . Allies Melted . | . . . . . . . . . . . . . . . . . . . Intel | -11 -10 -10 -9 -9 -9 -8 -7 -7 -6 -6 -5 -5 -5 -5 -5 -4 -4 -3 ------- Run | Yrd Mat Min Mat Sto Gar Mat Fac Gar Fac Gar Fac Was Fac Gar Fac Fac Gar Res Active Infowar (turns) 2149 | 45 64 95 199 279 86 737 121 523 . . . . . . . . . . Optics 557 | . . . 192 279 86 . . . . . . . . . . . . . Sensors 1381 | . . . . . . 737 121 523 . . . . . . . . . . Seismic 602 | 45 64 95 199 199 . . . . . . . . . . . . . . Robot Analysis Total 1 | . . . . 1 . . . . . . . . . . . . . . Derelict Logs Recovered . | . . . . . . . . . . . . . . . . . . . Drone Launches 2 | . . . . . . . . . . . 2 . . . . . . . Drone Recoveries 1 | . . . . . . . . . . . 1 . . . . . . . Exploration | -11 -10 -10 -9 -9 -9 -8 -7 -7 -6 -6 -5 -5 -5 -5 -5 -4 -4 -3 ------------- Run | Yrd Mat Min Mat Sto Gar Mat Fac Gar Fac Gar Fac Was Fac Gar Fac Fac Gar Res Turns Passed 9451 | 126 64 95 199 279 1228 767 121 705 421 1259 806 166 66 1643 528 44 309 625 Spaces Moved 4431 | 48 39 58 85 120 595 353 81 407 236 578 403 115 50 528 230 31 213 261 Core 27 | 2 . . . . . . . . . . . . . . . . . 25 Treads 1643 | 46 39 58 85 120 595 128 . 15 . 162 . . . 342 51 . 1 1 Legs 2250 | . . . . . . 225 81 392 236 416 403 115 50 186 . . . 146 Wheels 478 | . . . . . . . . . . . . . . . 179 31 212 56 Hover 33 | . . . . . . . . . . . . . . . . . . 33 Flight . | . . . . . . . . . . . . . . . . . . . Fastest Speed 50 | 50 160 160 160 160 160 120 120 115 115 112 105 120 120 120 130 112 90 50 Average Speed 144 | 155 160 160 160 160 160 134 120 121 115 131 114 137 120 202 163 126 114 144 Slowest Speed 900 | 160 160 160 160 160 160 160 122 240 115 240 187 190 120 330 245 130 330 900 Overloaded Moves . | . . . . . . . . . . . . . . . . . . . Propulsion Burnouts . | . . . . . . . . . . . . . . . . . . . Robots Hopped . | . . . . . . . . . . . . . . . . . . . Potential Cave-ins . | . . . . . . . . . . . . . . . . . . . Cave-ins Triggered . | . . . . . . . . . . . . . . . . . . . Exploration Rate (%) 27 | 5 18 18 10 26 86 42 3 55 9 58 15 74 2 40 7 2 44 12 Regions Visited 18 Branch Regions 2 Pre-discovered Areas . | . . . . . . . . . . . . . . . . . . . Known Exits Taken 7 | . . . . 1 . 1 1 . 1 . . . 1 . 1 1 . . Unknown Exits Taken 4 | 1 1 1 1 . . . . . . . . . . . . . . . Scrap Searched . | . . . . . . . . . . . . . . . . . . . Spaces Dug 6 | . . . . 1 . . . . 1 . 4 . . . . . . . Terrain Destroyed 253 | . . . . 2 12 85 . 39 4 2 10 . . 6 5 . 79 9 Melee 4 | . . . . . . . . . . . 4 . . . . . . . Projectile 31 | . . . . 2 . . . 1 4 2 6 . . 6 1 . . 9 AOE 213 | . . . . . 12 85 . 38 . . . . . . . . 78 . Terrain Rammed . | . . . . . . . . . . . . . . . . . . . Walls Destroyed . | . . . . . . . . . . . . . . . . . . . Machines Disabled . | . . . . . . . . . . . . . . . . . . . Actions | -11 -10 -10 -9 -9 -9 -8 -7 -7 -6 -6 -5 -5 -5 -5 -5 -4 -4 -3 --------- Run | Yrd Mat Min Mat Sto Gar Mat Fac Gar Fac Gar Fac Was Fac Gar Fac Fac Gar Res Total 6770 | 76 39 59 137 177 799 590 102 518 368 969 676 123 56 1029 337 36 259 420 Wait 1424 | 9 . . 42 36 88 147 9 21 107 213 183 . 4 433 57 . 15 60 Move 4417 | 47 38 57 84 120 594 352 81 405 236 577 403 114 50 527 229 31 211 261 Hop . | . . . . . . . . . . . . . . . . . . . Pick Up 67 | 2 . 1 4 2 11 5 4 6 1 7 6 1 . 6 4 2 1 4 Fast Attach 92 | 7 . . 1 1 3 6 . 11 1 12 10 . 1 10 8 . 1 20 Attach 32 | . . . . . 3 2 2 4 . 1 6 1 . 2 2 2 1 6 Detach 5 | . . . . . . . . . . . 1 . . 2 1 . . 1 Swap 73 | . . . . . 12 12 4 4 1 16 13 3 . 5 2 . . 1 Drop 79 | . . . . 2 12 8 1 5 1 14 8 3 1 5 12 1 2 4 Fire 431 | 11 1 1 6 16 49 48 1 60 21 60 42 . . 28 22 . 10 55 Melee 64 | . . . . . 11 10 . . . 24 4 . . 11 . . . 4 Ram 4 | . . . . . . . . . . . . . . . . . . 4 Kick . | . . . . . . . . . . . . . . . . . . . Crush . | . . . . . . . . . . . . . . . . . . . Escape Stasis 20 | . . . . . . . . 2 . . . . . . . . 18 . Rewire 62 | . . . . . 16 . . . . 45 . 1 . . . . . . Trap . | . . . . . . . . . . . . . . . . . . . Miscellaneous . | . . . . . . . . . . . . . . . . . . . Route ------- -11/Scrapyard -10/Materials -10/Mines -9/Materials -9/Storage (discovered 2 exits: [Rec] / Gar) -9/Garrison (discovered 3 exits: *Mat x3) -8/Materials (discovered 2 exits: *Fac x2) -7/Factory -7/Garrison (discovered 2 exits: *Fac x2) -6/Factory -6/Garrison (discovered 3 exits: *Fac x3) -5/Factory -5/Waste -5/Factory -5/Garrison -5/Factory (discovered 2 exits: *Fac / *Upp) -4/Factory -4/Garrison -3/Research History --------- Turn | Location | Event 6 | -11/Scrapyard | Discovered new exit (range 15) 127 | -11/Scrapyard | Entered Materials 175 | -10/Materials | Discovered new exit (range 11) 191 | -10/Materials | Entered Mines 219 | -10/Mines | Received a Rocket Launcher from a helpful Derelict 272 | -10/Mines | Discovered new exit (range 9) 286 | -10/Mines | Entered Materials 286 | -9/Materials | Evolved 2 slots: Propulsion x1, Utility x1 299 | -9/Materials | Discovered new exit (range 16) 314 | -9/Materials | Build established: Mutant 485 | -9/Materials | Entered Storage 634 | -9/Storage | Discovered new exit (range 8) 750 | -9/Storage | Central database locked down 764 | -9/Storage | Identified exit to Garrison 764 | -9/Storage | Entered Garrison 796 | -9/Garrison | Triggered checkpoint 880 | -9/Garrison | Garrison Relay disabled 1026 | -9/Garrison | Triggered checkpoint 1030 | -9/Garrison | Triggered checkpoint 1068 | -9/Garrison | Triggered checkpoint 1099 | -9/Garrison | Destroyed 7 combat bots 1140 | -9/Garrison | Triggered checkpoint 1170 | -9/Garrison | Garrison Relay disabled 1261 | -9/Garrison | Discovered new exit (range 10) 1312 | -9/Garrison | Build established: Scavenger-Mutant 1452 | -9/Garrison | Discovered new exit (range 18) 1452 | -9/Garrison | Discovered new exit (range 51) 1452 | -9/Garrison | Discovered new exit (range 49) 1536 | -9/Garrison | Installed Relay Interface Framework 1572 | -9/Garrison | Triggered checkpoint 1605 | -9/Garrison | Garrison Relay disabled 1748 | -9/Garrison | Expanded RIF knowledge: Robot Detection 1866 | -9/Garrison | Triggered checkpoint 1924 | -9/Garrison | Garrison Relay disabled 1992 | -9/Garrison | Entered Materials 1992 | -8/Materials | Accompanied by 5 allies 1992 | -8/Materials | Evolved 2 slots: Utility x2 2152 | -8/Materials | Lost 4 allies 2318 | -8/Materials | Discovered new exit (range 14) 2422 | -8/Materials | Build established: Bothacker-Mutant 2611 | -8/Materials | Discovered new exit (range 11) 2758 | -8/Materials | Identified exit to Factory 2759 | -8/Materials | Entered Factory 2759 | -7/Factory | Evolved 2 slots: Propulsion x1, Utility x1 2783 | -7/Factory | Build established: Mutant 2880 | -7/Factory | Identified exit to Garrison 2880 | -7/Factory | Entered Garrison 3037 | -7/Garrison | Lost 3 parts (1n1u1w) 3140 | -7/Garrison | Triggered checkpoint 3185 | -7/Garrison | Garrison Relay disabled 3220 | -7/Garrison | Triggered checkpoint 3275 | -7/Garrison | Destroyed 7 combat bots 3292 | -7/Garrison | Discovered new exit (range 9) 3376 | -7/Garrison | Triggered checkpoint 3442 | -7/Garrison | Lost 6 parts (2n3u1w) 3455 | -7/Garrison | Garrison Relay disabled 3549 | -7/Garrison | Expanded RIF knowledge: Signal Jamming 3567 | -7/Garrison | Discovered new exit (range 13) 3581 | -7/Garrison | Identified exit to Factory 3585 | -7/Garrison | Entered Factory 3585 | -6/Factory | Evolved 2 slots: Power x1, Utility x1 3726 | -6/Factory | Build established: Scavenger-Mutant 4006 | -6/Factory | Identified exit to Garrison 4006 | -6/Factory | Entered Garrison 4126 | -6/Garrison | Garrison Relay disabled 4166 | -6/Garrison | Triggered checkpoint 4392 | -6/Garrison | Triggered checkpoint 4429 | -6/Garrison | Build established: Bothacker-Mutant 4495 | -6/Garrison | Discovered new exit (range 68) 4495 | -6/Garrison | Discovered new exit (range 98) 4495 | -6/Garrison | Discovered new exit (range 72) 4504 | -6/Garrison | Triggered checkpoint 4630 | -6/Garrison | Triggered checkpoint 4630 | -6/Garrison | Triggered checkpoint 4652 | -6/Garrison | Triggered checkpoint 4760 | -6/Garrison | Triggered checkpoint 4827 | -6/Garrison | Expanded RIF knowledge: Threat Obfuscation 4843 | -6/Garrison | Garrison Relay disabled 4909 | -6/Garrison | Build established: Commander-Mutant 5031 | -6/Garrison | Expanded RIF knowledge: Autooverride 5042 | -6/Garrison | Triggered checkpoint 5176 | -6/Garrison | Identified exit to Factory 5265 | -6/Garrison | Entered Factory 5265 | -5/Factory | Accompanied by 8 allies 5265 | -5/Factory | Evolved 2 slots: Utility x1, Weapon x1 5559 | -5/Factory | Garrison activated, responded to threat 5572 | -5/Factory | Build established: Commander-Gunner 5637 | -5/Factory | Lost 7 allies 5679 | -5/Factory | P-70 Sage assimilated allied Guardian 5a 5681 | -5/Factory | P-70 Sage assimilated allied Sentinel 6a 5713 | -5/Factory | Lost 9 parts (2n4u3w) 5887 | -5/Factory | Build established: Scavenger-Mutant 5909 | -5/Factory | Cargo convoy interrupted 6071 | -5/Factory | Sucked down chute 6071 | -5/Factory | Entered Waste 6071 | -5/Waste | The area was eerily silent 6118 | -5/Waste | Found Adv. Powered Armor 6151 | -5/Waste | A Compactor rumbled back to life 6152 | -5/Waste | Spotted C-40 Crusher 6225 | -5/Waste | Discovered new exit (range 11) 6235 | -5/Waste | Identified exit to Factory 6237 | -5/Waste | Entered Factory 6303 | -5/Factory | Identified exit to Garrison 6303 | -5/Factory | Entered Garrison 6354 | -5/Garrison | Expanded RIF knowledge: Zone Cloak 6377 | -5/Garrison | Triggered checkpoint 6407 | -5/Garrison | Garrison Relay disabled 6602 | -5/Garrison | Spotted B-75 Beast 6704 | -5/Garrison | Destroyed B-75 Beast 6729 | -5/Garrison | Lost 3 parts (3n) 6751 | -5/Garrison | Build established: Bothacker-Mutant 6855 | -5/Garrison | Triggered checkpoint 7049 | -5/Garrison | Triggered checkpoint 7410 | -5/Garrison | Build established: Bothacker-Tank 7539 | -5/Garrison | Triggered checkpoint 7607 | -5/Garrison | Lost 4 parts (1n3w) 7723 | -5/Garrison | Garrison Relay disabled 7815 | -5/Garrison | Discovered new exit (range 8) 7885 | -5/Garrison | Garrison Relay disabled 7913 | -5/Garrison | Build established: Scavenger-Tank 7944 | -5/Garrison | Identified exit to Factory 7946 | -5/Garrison | Entered Factory 8135 | -5/Factory | Discovered new exit (range 6) 8167 | -5/Factory | Identified exit to Upper Caves 8402 | -5/Factory | Discovered new exit (range 16) 8455 | -5/Factory | Identified exit to Factory 8474 | -5/Factory | Entered another Factory area 8474 | -4/Factory | Evolved 2 slots: Power x1, Utility x1 8518 | -4/Factory | Identified exit to Garrison 8518 | -4/Factory | Entered Garrison 8568 | -4/Garrison | Triggered checkpoint 8632 | -4/Garrison | Phase Generator disabled 8662 | -4/Garrison | Build established: Scavenger-Gunner 8781 | -4/Garrison | Spotted B-86 Titan 8784 | -4/Garrison | Triggered checkpoint 8784 | -4/Garrison | Triggered checkpoint 8816 | -4/Garrison | Discovered new exit (range 10) 8827 | -4/Garrison | Entered Research 8827 | -3/Research | Evolved 2 slots: Propulsion x1, Weapon x1 8855 | -3/Research | Lost 8 parts (3p1n1u3w) 8963 | -3/Research | Lost 8 parts (2n3u3w) 9109 | -3/Research | Found Quantum Capacitor 9183 | -3/Research | System corruption reached 10% 9206 | -3/Research | Lost 3 parts (1p1n1w) 9334 | -3/Research | Core integrity fell below 50% 9352 | -3/Research | Core integrity fell below 20% 9367 | -3/Research | Lost 5 parts (2p3n) 9373 | -3/Research | Found Prototype Protection 9373 | -3/Research | Identified Centrium Heavy Armor Plating 9377 | -3/Research | Found Centrium Heavy Armor Plating 9452 | -3/Research | Destroyed by H-77 Assassin with Coil Gun Last Messages --------------- 09436_ Penetrated by Slug. 09436_ Slug penetrates Wall. 09437_ Penetrated by Slug. 09437_ Slug penetrates Wall. 09438_ Penetrated by Slug. 09438_ Slug penetrates Wall. 09441_ Penetrated by Slug. 09441_ Slug penetrates Wall. 09441_ Penetrated by Slug. 09441_ Relay Coupler [Grunt] destroyed. 09444_ Penetrated by Slug. 09445_ Slug penetrates Wall. 09446_ Penetrated by Slug. 09446_ Critical hit (Destroy). 09446_ Penetrated by Slug. 09447_ Critical hit (Destroy). 09447_ Slug penetrates Wall. 09448_ Penetrated by Slug. 09450_ Slug penetrates Wall. 09452_ Penetrated by Slug. Map ----- +----------------------------------------------------+ | ?????????????????????????????????????????????????? | | ?????????????????????????????????????????????????? | | ?????????????????????????????????????????????????? | | ?????????????????????????????????????????????????? | | ?????????????????????????????????????????????????? | | ?????????????????????????????????????????????????? | | ?????????????????????????????????????????????????? | | ?????????????????????????????????????????????????? | | ##???????????????????????????????????????????????? | | #??????????????????????????????????????????????? | | #??????????????????????????????????????????????? | | ???????????????????????????????????????????????? | | #??????????????????????????????????????????????? | | #???????????????????##?????????????????????????? | | #???????????????????? ?????????????????????????? | | #???????????????????? #????????????????????????? | | #???????????????????? ????????????????????????? | | #???????????????????##"#####???????????????????? | | #???????????????????# #???????????????????? | | #???????????????????# #???????????????????? | | #???????????????????# #???????????????????? | | ###???????????????????# ! #???????????????????? | | ????????############### #???????????????????? | | ????????# ## ########????????????? | | ????????# #####;;## !!! #????????????? | | ????????# #?# @ # #????????????? | | #######?# ###h hhh# ! #????????????? | | """" #?# / [+!* #????????????? | | """" #?# ### % = #????????????? | | """" #?# #?# # #????????????? | | #?# #?### ##########????????????? | | #?# #???# #?????????????????????? | | #?# ##### #?????????????????????? | | #?# + #?######??????????????? | | #?# # # #??????????????? | | ##/############+###### # #??????????????? | | + #??????????????? | | # ! #??????????????? | | # #??????????????? | | # * #??????????????? | | #########+### ####+####+#########?????????????? | | ???# # # %[! = #?????????????? | | ???# # # ! !% #?????????????? | | ???# "" # # = """ #?????????????? | | ???# "" # # """ #?????????????? | | ???# T" # # ! % """ #?????????????? | | ???# "" # # #?????????????? | | ???# "" # # !! ! #?????????????? | | ???# # ################+##?????????????? | | ???# # ^^# #????# #??????????????? | +----------------------------------------------------+ Best States ------------- Heat Dissipation 65 Energy Generation 57 Energy Capacity 630 Matter Stores 300 Matter Capacity 300 Sight Range 20 Robot Scan Range 15 Terrain Scan Density 10 Additional Mass Support 12 Armor Coverage 1200 Resistance: KI 25 Resistance: TH 20 Resistance: EM 15 Weapon Shielding 66 Point Defense Rating 80 Evasion (%) 70 Targeting Accuracy 11 Target Analysis 8 Recoil Reduction 6 Defensive Hacking 10 Relay Coupler Types 4 Relay Coupler Value 74 Item Schematics ----------------- System Shield | -8/Materials | Scanalyzed Imp. Carbon-fiber Leg | -8/Materials | Scanalyzed Hyp. Coil Gun | -5/Factory | Scanalyzed Robot Schematics ------------------ None Fabricated ------------ Nothing Repaired ---------- Nothing Studied --------- Rocket Launcher | -8/Materials | Hacked Mni. Grenade Launcher | -8/Materials | Hacked Hyp. Coil Gun | -5/Factory | Hacked Alien Tech Used ----------------- None Achievements -------------- None Challenges ------------ None Game ------ Seed ThermicActuatorProtomatter Manual? 0 Play Time 01:49:41 Cumulative 206.1 hours Start 2026.06.18 @ 13:20:09 End 2026.06.19 @ 21:04:31 Sessions 6 Manual Loads 0 Difficulty Rogue Special Mode None Game No. 284 Rogue 284 Adventurer 0 Explorer 0 Win Type - Total 2 Types 1/0/0/1/0/0/0/0/0/0 Lore% 73 Gallery% 62 Achievement% 49 Wizard Run 0 Options --------- Layout 2 ASCII 0 Keyboard 0 Movement Mouse Keybinds 0 Fullscreen 1 Font 24/Smallcaps Map View 50x44 Zoom Use 0% Tactical HUD 1 Map Filters NONE Filters NONE Steam 1 RUN: 6a281b4e-c81d-4874-b0a2-5df2cd475ea4